[Event "Oleksandr Stadnyk Memorial 2020"]
[Site "Chortkiv"]
[Date "2020.12.09"]
[Round "6.1"]
[White "Polishchuk, Oleg"]
[Black "Vakulenko, Oleksandr"]
[Result "0-1"]
[ECO "D43"]
[WhiteElo "2155"]
[BlackElo "2245"]
[Annotator "RC"]
[PlyCount "86"]
[EventDate "2020.12.07"]
[EventType "tourn"]
[EventCountry "UKR"]
[SourceTitle "playchess.com"]
[Source "ChessBase"]
[SourceQuality "1"]
[TimeControl "5400+30"]

1. d4 d5 2. c4 e6 3. Nc3 c6 4. Nf3 Nf6 5. Bg5 h6 6. Bxf6 Qxf6 {[%emt 0:02:31]} 7. e3 {[%emt 0:02:47]} g6 {[%emt 0:07:46]} 8. Rc1 {[%emt 0:00:13]} Nd7 {[%emt 0:02:17]} 9. Bd3 {[%emt 0:02:29]} Bg7 {[%emt 0:01:15]} 10. O-O {[%emt 0:00:13]} O-O {[%emt 0:00:58]} 11. cxd5 {[%emt 0:03:01]} exd5 {[%emt 0:00:44]} 12. b4 {[%emt 0:00:06]} Qd6 {[%emt 0:09:16]} 13. Qb3 {[%emt 0:02:52]} b5 {[%emt 0:09:20]} 14. e4 {[%emt 0:02:51]} dxe4 {[%emt 0:12:52]} 15. Nxe4 {[%emt 0:05:02]} Qf4 {[%emt 0:00:20]} 16. Rfe1 {[%emt 0:07:18]} Bb7 {[%emt 0:02:48]} 17. Nc5 {[%emt 0:00:30]} Nxc5 {[%emt 0:03:48]} 18. dxc5 {[%emt 0:02:15]} Kh8 19. Rcd1 Rae8 {[%emt 0:04:58]} 20. Bf1 {[%emt 0:00:49]} Rxe1 {[%emt 0:05:29]} 21. Rxe1 {[%emt 0:00:09]} Bc8 {[%emt 0:00:43]} 22. g3 {[%emt 0:03:01]} Qc7 {[%emt 0:02:10]} 23. Nh4 {[%emt 0:07:29]} g5 {[%emt 0:02:14]} 24. Nf3 {[%emt 0:00:33]} Be6 {[%emt 0:00:16]} 25. Qa3 {[%emt 0:01:12]} a5 {[%emt 0:00:55]} 26. h4 {[%emt 0:00:48]} g4 {[%emt 0:02:16]} 27. Nd2 {[%emt 0:00:35]} axb4 {[%emt 0:01:11]} 28. Qxb4 {[%emt 0:00:15]} Ra8 {[%emt 0:01:02]} 29. Ne4 {[%emt 0:00:24]} Ra4 {[%emt 0:01:29]} 30. Qb1 {[%emt 0:01:41]} Bxa2 {[%emt 0:03:42]} 31. Qd1 {[%emt 0:00:44]} Be6 {[%emt 0:00:57]} 32. Nd6 {[%emt 0:00:20]} Ra1 {[%emt 0:05:12]} 33. Qe2 {[%emt 0:01:18]} Rxe1 {[%emt 0:03:51]} 34. Qxe1 {[%emt 0:00:02]} Qa7 {[%emt 0:00:27]} 35. Qc1 {[%emt 0:01:13]} b4 {[%emt 0:04:23]} 36. Ne8 {[%emt 0:02:41]} Qa1 {[%emt 0:01:18]} 37. Qf4 {[%emt 0:00:02]} b3 {[%emt 0:01:10]} 38. Qb8 {[%emt 0:00:05]} Be5 {[%emt 0:02:31]} 39. Qd8 {[%emt 0:01:39]} Qd4 {[%emt 0:01:04]} 40. Nd6+ {[%emt 0:01:04]} Kh7 {[%emt 0:00:28]} 41. Qe7 {[%emt 0:01:33]} Bxg3 {[%emt 0:01:32]} 42. Ne4 {[%emt 0:00:01]} Qxe4 {[%emt 0:00:41]} 43. fxg3 {[%emt 0:00:02]} b2 0-1

[Event "Oleksandr Stadnyk Memorial 2020"]
[Site "Chortkiv"]
[Date "2020.12.09"]
[Round "6.2"]
[White "Hulka, Valentyn"]
[Black "Medvedyk, Volodymyr"]
[Result "1/2-1/2"]
[ECO "C70"]
[WhiteElo "1991"]
[BlackElo "2205"]
[Annotator "RC"]
[PlyCount "55"]
[EventDate "2020.12.07"]
[EventType "tourn"]
[EventCountry "UKR"]
[SourceTitle "playchess.com"]
[Source "ChessBase"]
[SourceQuality "1"]
[TimeControl "5400+30"]

1. e4 {[%emt 0:00:00]} e5 {[%emt 0:01:22]} 2. Nf3 {[%emt 0:00:00]} Nc6 {[%emt 0:00:03]} 3. Bb5 {[%emt 0:00:00]} a6 {[%emt 0:00:07]} 4. Ba4 {[%emt 0:00:00]} b5 {[%emt 0:00:13]} 5. Bb3 {[%emt 0:00:00]} g6 {[%emt 0:00:07]} 6. d4 {[%emt 0:00:00]} exd4 {[%emt 0:00:04]} 7. a4 {[%emt 0:00:00]} b4 {[%emt 0:02:05]} 8. Nxd4 {[%emt 0:00:02]} Na5 {[%emt 0:00:31]} 9. Bd5 {[%emt 0:00:06]} c6 {[%emt 0:01:03]} 10. Ba2 {[%emt 0:00:04]} Bg7 {[%emt 0:03:40]} 11. O-O {[%emt 0:03:40]} Ne7 {[%emt 0:06:00]} 12. c3 {[%emt 0:00:05]} c5 {[%emt 0:02:38]} 13. cxb4 {[%emt 0:00:10]} cxd4 {[%emt 0:12:31]} 14. bxa5 {[%emt 0:00:10]} O-O {[%emt 0:01:40]} 15. Nd2 {[%emt 0:02:22]} d5 {[%emt 0:05:28]} 16. exd5 {[%emt 0:02:34]} Nxd5 {[%emt 0:00:45]} 17. Ne4 {[%emt 0:04:56]} Nb4 {[%emt 0:19:28]} 18. Bb3 {[%emt 0:01:50]} Qxa5 {[%emt 0:18:02]} 19. Nd6 {[%emt 0:02:39]} Be6 {[%emt 0:03:14]} 20. Bxe6 {[%emt 0:00:53]} fxe6 {[%emt 0:00:01]} 21. Bd2 {[%emt 0:02:07]} Rab8 {[%emt 0:04:30]} 22. Qe1 {[%emt 0:00:21]} e5 {[%emt 0:01:15]} 23. Rc1 {[%emt 0:04:04]} Qb6 {[%emt 0:06:12]} 24. Nc4 {[%emt 0:00:34]} Qb7 {[%emt 0:01:28]} 25. Nd6 {[%emt 0:01:14]} Qb6 {[%emt 0:01:25]} 26. Nc4 {[%emt 0:01:44]} Qb7 {[%emt 0:00:50]} 27. Nd6 {[%emt 0:01:18]} Qb6 {[%emt 0:00:56]} 28. Nc4 1/2-1/2

[Event "Oleksandr Stadnyk Memorial 2020"]
[Site "Chortkiv"]
[Date "2020.12.11"]
[Round "10.2"]
[White "Medvedyk, Volodymyr"]
[Black "Lozynskyi, Bohdan"]
[Result "0-1"]
[ECO "A06"]
[WhiteElo "2205"]
[BlackElo "2077"]
[Annotator "ChessBase"]
[PlyCount "74"]
[EventDate "2020.12.07"]
[EventType "tourn"]
[EventCountry "UKR"]
[SourceTitle "playchess.com"]
[Source "ChessBase"]
[SourceQuality "1"]
[TimeControl "5400+30"]

1. Nf3 {[%emt 0:00:42]} d5 {[%emt 0:00:00]} 2. g3 {[%emt 0:01:06]} Nf6 {[%emt 0:00:00]} 3. Bg2 {[%emt 0:00:17]} Bg4 {[%emt 0:00:27]} 4. c4 {[%emt 0:03:36]} c6 {[%emt 0:00:58]} 5. Ne5 {[%emt 0:00:53]} Bh5 {[%emt 0:02:44]} 6. cxd5 {[%emt 0:00:42]} cxd5 {[%emt 0:00:16]} 7. Qa4+ {[%emt 0:05:36]} Nbd7 {[%emt 0:00:41]} 8. d3 {[%emt 0:02:41]} e6 {[%emt 0:01:39]} 9. g4 {[%emt 0:00:28]} Bg6 {[%emt 0:00:41]} 10. h4 {[%emt 0:01:37]} h6 {[%emt 0:04:42]} 11. Nxg6 {[%emt 0:10:38]} fxg6 {[%emt 0:00:02]} 12. g5 {[%emt 0:09:18]} hxg5 {[%emt 0:00:33]} 13. hxg5 {[%emt 0:01:17]} Rxh1+ {[%emt 0:00:07]} 14. Bxh1 {[%emt 0:00:00]} Nh5 {[%emt 0:03:29]} 15. Nc3 {[%emt 0:01:50]} Qb6 {[%emt 0:03:00]} 16. Bd2 {[%emt 0:11:51]} O-O-O {[%emt 0:05:24]} 17. Rc1 {[%emt 0:14:12]} Nc5 {[%emt 0:09:29]} 18. Nb5 {[%emt 0:10:33]} a6 {[%emt 0:05:53]} 19. b4 {[%emt 0:02:02]} Qxb5 {[%emt 0:00:34]} 20. Qxb5 {[%emt 0:00:24]} axb5 {[%emt 0:00:40]} 21. bxc5 {[%emt 0:00:31]} Kd7 {[%emt 0:00:20]} 22. e4 Kc6 23. Rc2 {[%emt 0:10:01]} Be7 {[%emt 0:01:41]} 24. Bg2 {[%emt 0:04:40]} Rf8 {[%emt 0:01:02]} 25. Bh3 {[%emt 0:00:07]} dxe4 {[%emt 0:00:28]} 26. Bg2 {[%emt 0:00:40]} Nf4 {[%emt 0:00:16]} 27. Bxe4+ {[%emt 0:00:56]} Kc7 {[%emt 0:00:11]} 28. Ba5+ {[%emt 0:01:25]} Kb8 {[%emt 0:00:06]} 29. Rb2 {[%emt 0:03:53]} Bxc5 {[%emt 0:01:52]} 30. Rxb5 {[%emt 0:00:01]} b6 {[%emt 0:00:00]} 31. Bxb6 {[%emt 0:00:17]} Bxb6 32. Rxb6+ {[%emt 0:00:01]} Kc7 {[%emt 0:00:16]} 33. Rb7+ {[%emt 0:00:41]} Kd6 {[%emt 0:00:04]} 34. Rxg7 {[%emt 0:03:25]} Rb8 {[%emt 0:00:41]} 35. Kd2 {[%emt 0:00:38]} Rb2+ {[%emt 0:00:32]} 36. Ke3 {[%emt 0:00:17]} Nh3 {[%emt 0:00:04]} 37. Rxg6 {[%emt 0:00:42]} Nxf2 {[%emt 0:00:14]} 0-1